{"text_format":"1","workbook":"xlsx","n_sheets":2,"sheets":["Данные","Результат"],"not_rendered":{"charts":0,"images":0,"macros":0,"external_links":0,"defined_names":0,"comments":0,"pivot_tables":0},"unopened":[],"bounds":{"document_bytes":16777216,"sheet_cells":100000,"rows_first":2000,"rows_last":500,"rows_between":2000,"halvings":0,"cell_chars":16384,"cell_head_chars":4096},"cells_cut":0,"cells_raw":0,"read":"whole","date_system":"1900"}

{"sheet":"Данные","index":0,"n_rows":29,"n_cols":3,"rows_kept":29,"cut":false,"hidden":false,"merged":[]}
[null,"Менеджер","Клиент"]
[{"$f":"COUNTIF($B$2:B2,B2)&B2","v":"1Маша"},"Маша","Маэстро, кафе"]
[{"$f":"COUNTIF($B$2:B3,B3)&B3","v":"2Маша"},"Маша","Территория Красок, торговая фирма"]
[{"$f":"COUNTIF($B$2:B4,B4)&B4","v":"3Маша"},"Маша","Урал-Резерв, торговая компания"]
[{"$f":"COUNTIF($B$2:B5,B5)&B5","v":"4Маша"},"Маша","Фаворит, ООО, рекламно-производственная компания"]
[{"$f":"COUNTIF($B$2:B6,B6)&B6","v":"1Ваня"},"Ваня","Авангард-спецодежда Оренбург, ООО, производственно-торговая компания"]
[{"$f":"COUNTIF($B$2:B7,B7)&B7","v":"2Ваня"},"Ваня","Автотент центр, производственно-торговая фирма"]
[{"$f":"COUNTIF($B$2:B8,B8)&B8","v":"3Ваня"},"Ваня","Акамуто, студия доставки японской кухни"]
[{"$f":"COUNTIF($B$2:B9,B9)&B9","v":"4Ваня"},"Ваня","Бегемот, сеть кафе"]
[{"$f":"COUNTIF($B$2:B10,B10)&B10","v":"5Ваня"},"Ваня","ВЕДИ, ООО, стоматологическая клиника"]
[{"$f":"COUNTIF($B$2:B11,B11)&B11","v":"6Ваня"},"Ваня","Делакруа, торгово-монтажная компания"]
[{"$f":"COUNTIF($B$2:B12,B12)&B12","v":"7Ваня"},"Ваня","Дракоша, сеть магазинов игрушек"]
[{"$f":"COUNTIF($B$2:B13,B13)&B13","v":"8Ваня"},"Ваня","Карамель, лаунж-кафе"]
[{"$f":"COUNTIF($B$2:B14,B14)&B14","v":"9Ваня"},"Ваня","Крепмаркет, торговая компания"]
[{"$f":"COUNTIF($B$2:B15,B15)&B15","v":"10Ваня"},"Ваня","Медикал Он Груп-Оренбург, ООО, международный медицинский центр"]
[{"$f":"COUNTIF($B$2:B16,B16)&B16","v":"11Ваня"},"Ваня","Мир, производственная компания"]
[{"$f":"COUNTIF($B$2:B17,B17)&B17","v":"12Ваня"},"Ваня","Оптик-Сити, салон оптики"]
[{"$f":"COUNTIF($B$2:B18,B18)&B18","v":"13Ваня"},"Ваня","Пункт проката горных лыж и сноубордов, ИП Гавриков М.А."]
[{"$f":"COUNTIF($B$2:B19,B19)&B19","v":"14Ваня"},"Ваня","Ратибор, ООО, охранное предприятие"]
[{"$f":"COUNTIF($B$2:B20,B20)&B20","v":"1Петя"},"Петя","Hotel Grand, гостиничный комплекс"]
[{"$f":"COUNTIF($B$2:B21,B21)&B21","v":"2Петя"},"Петя","Фалькон, лазертаг-клуб"]
[{"$f":"COUNTIF($B$2:B22,B22)&B22","v":"1Федя"},"Федя","Bosal+, магазин автотоваров"]
[{"$f":"COUNTIF($B$2:B23,B23)&B23","v":"2Федя"},"Федя","Krovelson, производственно-торговая компания"]
[{"$f":"COUNTIF($B$2:B24,B24)&B24","v":"3Федя"},"Федя","Orengun, магазин"]
[{"$f":"COUNTIF($B$2:B25,B25)&B25","v":"4Федя"},"Федя","АВАЛОН, служба эвакуации автомобилей"]
[{"$f":"COUNTIF($B$2:B26,B26)&B26","v":"5Федя"},"Федя","АвангардСервис, "]
[{"$f":"COUNTIF($B$2:B27,B27)&B27","v":"6Федя"},"Федя","авто Rally, торгово-сервисная фирма"]
[{"$f":"COUNTIF($B$2:B28,B28)&B28","v":"7Федя"},"Федя","Автомобильная служба, ИП Чердинцева О.И."]
[{"$f":"COUNTIF($B$2:B29,B29)&B29","v":"8Федя"},"Федя","АвтоСпецТехника, ООО"]

{"sheet":"Результат","index":1,"n_rows":8,"n_cols":4,"rows_kept":8,"cut":false,"hidden":false,"merged":[]}
["Маша","Ваня","Петя","Федя"]
[{"$f":"IF(COUNTIF(Данные!$B$2:$B$29,A$1)<ROW(A1),\"\",VLOOKUP(ROW(A1)&A$1,Данные!$A$2:$C$29,3,))","v":"Маэстро, кафе"},{"$f":"IF(COUNTIF(Данные!$B$2:$B$29,B$1)<ROW(B1),\"\",VLOOKUP(ROW(B1)&B$1,Данные!$A$2:$C$29,3,))","v":"Авангард-спецодежда Оренбург, ООО, производственно-торговая компания"},{"$f":"IF(COUNTIF(Данные!$B$2:$B$29,C$1)<ROW(C1),\"\",VLOOKUP(ROW(C1)&C$1,Данные!$A$2:$C$29,3,))","v":"Hotel Grand, гостиничный комплекс"},{"$f":"IF(COUNTIF(Данные!$B$2:$B$29,D$1)<ROW(D1),\"\",VLOOKUP(ROW(D1)&D$1,Данные!$A$2:$C$29,3,))","v":"Bosal+, магазин автотоваров"}]
[{"$f":"IF(COUNTIF(Данные!$B$2:$B$29,A$1)<ROW(A2),\"\",VLOOKUP(ROW(A2)&A$1,Данные!$A$2:$C$29,3,))","v":"Территория Красок, торговая фирма"},{"$f":"IF(COUNTIF(Данные!$B$2:$B$29,B$1)<ROW(B2),\"\",VLOOKUP(ROW(B2)&B$1,Данные!$A$2:$C$29,3,))","v":"Автотент центр, производственно-торговая фирма"},{"$f":"IF(COUNTIF(Данные!$B$2:$B$29,C$1)<ROW(C2),\"\",VLOOKUP(ROW(C2)&C$1,Данные!$A$2:$C$29,3,))","v":"Фалькон, лазертаг-клуб"},{"$f":"IF(COUNTIF(Данные!$B$2:$B$29,D$1)<ROW(D2),\"\",VLOOKUP(ROW(D2)&D$1,Данные!$A$2:$C$29,3,))","v":"Krovelson, производственно-торговая компания"}]
[{"$f":"IF(COUNTIF(Данные!$B$2:$B$29,A$1)<ROW(A3),\"\",VLOOKUP(ROW(A3)&A$1,Данные!$A$2:$C$29,3,))","v":"Урал-Резерв, торговая компания"},{"$f":"IF(COUNTIF(Данные!$B$2:$B$29,B$1)<ROW(B3),\"\",VLOOKUP(ROW(B3)&B$1,Данные!$A$2:$C$29,3,))","v":"Акамуто, студия доставки японской кухни"},{"$f":"IF(COUNTIF(Данные!$B$2:$B$29,C$1)<ROW(C3),\"\",VLOOKUP(ROW(C3)&C$1,Данные!$A$2:$C$29,3,))","v":""},{"$f":"IF(COUNTIF(Данные!$B$2:$B$29,D$1)<ROW(D3),\"\",VLOOKUP(ROW(D3)&D$1,Данные!$A$2:$C$29,3,))","v":"Orengun, магазин"}]
[{"$f":"IF(COUNTIF(Данные!$B$2:$B$29,A$1)<ROW(A4),\"\",VLOOKUP(ROW(A4)&A$1,Данные!$A$2:$C$29,3,))","v":"Фаворит, ООО, рекламно-производственная компания"},{"$f":"IF(COUNTIF(Данные!$B$2:$B$29,B$1)<ROW(B4),\"\",VLOOKUP(ROW(B4)&B$1,Данные!$A$2:$C$29,3,))","v":"Бегемот, сеть кафе"},{"$f":"IF(COUNTIF(Данные!$B$2:$B$29,C$1)<ROW(C4),\"\",VLOOKUP(ROW(C4)&C$1,Данные!$A$2:$C$29,3,))","v":""},{"$f":"IF(COUNTIF(Данные!$B$2:$B$29,D$1)<ROW(D4),\"\",VLOOKUP(ROW(D4)&D$1,Данные!$A$2:$C$29,3,))","v":"АВАЛОН, служба эвакуации автомобилей"}]
[{"$f":"IF(COUNTIF(Данные!$B$2:$B$29,A$1)<ROW(A5),\"\",VLOOKUP(ROW(A5)&A$1,Данные!$A$2:$C$29,3,))","v":""},{"$f":"IF(COUNTIF(Данные!$B$2:$B$29,B$1)<ROW(B5),\"\",VLOOKUP(ROW(B5)&B$1,Данные!$A$2:$C$29,3,))","v":"ВЕДИ, ООО, стоматологическая клиника"},{"$f":"IF(COUNTIF(Данные!$B$2:$B$29,C$1)<ROW(C5),\"\",VLOOKUP(ROW(C5)&C$1,Данные!$A$2:$C$29,3,))","v":""},{"$f":"IF(COUNTIF(Данные!$B$2:$B$29,D$1)<ROW(D5),\"\",VLOOKUP(ROW(D5)&D$1,Данные!$A$2:$C$29,3,))","v":"АвангардСервис, "}]
[{"$f":"IF(COUNTIF(Данные!$B$2:$B$29,A$1)<ROW(A6),\"\",VLOOKUP(ROW(A6)&A$1,Данные!$A$2:$C$29,3,))","v":""},{"$f":"IF(COUNTIF(Данные!$B$2:$B$29,B$1)<ROW(B6),\"\",VLOOKUP(ROW(B6)&B$1,Данные!$A$2:$C$29,3,))","v":"Делакруа, торгово-монтажная компания"},{"$f":"IF(COUNTIF(Данные!$B$2:$B$29,C$1)<ROW(C6),\"\",VLOOKUP(ROW(C6)&C$1,Данные!$A$2:$C$29,3,))","v":""},{"$f":"IF(COUNTIF(Данные!$B$2:$B$29,D$1)<ROW(D6),\"\",VLOOKUP(ROW(D6)&D$1,Данные!$A$2:$C$29,3,))","v":"авто Rally, торгово-сервисная фирма"}]
[{"$f":"IF(COUNTIF(Данные!$B$2:$B$29,A$1)<ROW(A7),\"\",VLOOKUP(ROW(A7)&A$1,Данные!$A$2:$C$29,3,))","v":""},{"$f":"IF(COUNTIF(Данные!$B$2:$B$29,B$1)<ROW(B7),\"\",VLOOKUP(ROW(B7)&B$1,Данные!$A$2:$C$29,3,))","v":"Дракоша, сеть магазинов игрушек"},{"$f":"IF(COUNTIF(Данные!$B$2:$B$29,C$1)<ROW(C7),\"\",VLOOKUP(ROW(C7)&C$1,Данные!$A$2:$C$29,3,))","v":""},{"$f":"IF(COUNTIF(Данные!$B$2:$B$29,D$1)<ROW(D7),\"\",VLOOKUP(ROW(D7)&D$1,Данные!$A$2:$C$29,3,))","v":"Автомобильная служба, ИП Чердинцева О.И."}]